fUSD/lending_fUSD_20240613
["ID","MTS","AMOUNT","RATE_DAILY","PERIOD"]
[329357831,1718277112967,-500.0,0.00026691,3]
[329357832,1718277112983,-633.48,0.00026691,3]
[329357833,1718277112997,-1695.46,0.00026691,3]
[329357834,1718277113020,-500.0,0.00026691,3]
[329357835,1718277113032,-1351.29,0.00026691,3]
[329357836,1718277113049,-500.0,0.00026691,3]
[329357837,1718277113063,-977.95,0.00026691,3]
[329357838,1718277113075,-557.92,0.00026691,3]
[329357839,1718277113086,-500.0,0.00026691,3]
[329357840,1718277113099,-869.98,0.00026691,3]
[329357841,1718277113116,-2538.97,0.00026691,3]
[329357842,1718277113128,-774.79,0.00026691,3]
[329357843,1718277113139,-500.0,0.00026691,3]
[329357844,1718277113154,-500.0,0.00026691,3]
[329357845,1718277113166,-869.72,0.00026691,3]
[329357846,1718277113180,-218.51742701,0.00026691,2]
[329357847,1718277113192,-2643.48,0.00026691,3]
[329357848,1718277113209,-1050.99,0.00026691,3]
[329357849,1718277113240,-500.0,0.00026691,3]
[329357850,1718277113257,-6022.3,0.00026691,3]
[329357851,1718277113271,-2325.51,0.00026691,3]
[329357852,1718277113285,-594.46,0.00026691,3]
[329357853,1718277113302,-1340.93,0.00026691,3]
[329357854,1718277113320,-525.87,0.00026691,3]
[329357855,1718277113334,-2801.14,0.00026691,3]
[329357856,1718277113346,-556.9,0.00026691,3]
[329357857,1718277113367,-1037.02,0.00026691,3]
[329357858,1718277113384,-788.09,0.00026691,3]
[329357859,1718277113397,-500.0,0.00026691,3]
[329357860,1718277113411,-1590.22,0.00026691,3]
[329357861,1718277113430,-1299.11,0.00026691,3]
[329357862,1718277113445,-1761.78,0.00026691,3]
[329357863,1718277113461,-1262.69,0.00026691,3]
[329357864,1718277113473,-8305.14,0.00026691,3]
[329357865,1718277113504,-4418.73,0.00026691,3]
[329357866,1718277113523,-500.0,0.00026691,3]
[329357867,1718277113540,-1444.06,0.00026691,3]
[329357868,1718277113556,-577.13,0.00026691,3]
[329357869,1718277113572,-500.0,0.00026691,3]
[329357870,1718277113602,-725.83,0.00026691,3]
[329357871,1718277113618,-1042.68,0.00026691,3]
[329357872,1718277113634,-500.0,0.00026691,3]
[329357873,1718277113649,-3100.67,0.00026691,3]
[329357874,1718277113668,-500.0,0.00026691,3]
[329357875,1718277113681,-518.8,0.00026691,3]
[329357876,1718277113696,-1727.08,0.00026691,3]
[329357877,1718277113712,-500.0,0.00026691,3]
[329357878,1718277113726,-500.0,0.00026691,3]
[329357879,1718277113737,-1122.65,0.00026691,3]
[329357880,1718277113751,-516.62565221,0.00026691,3]
[329357881,1718277113770,-505.98,0.00026691,3]
[329357882,1718277113788,-1309.02,0.00026691,3]
[329357883,1718277113808,-662.75,0.00026691,3]
[329357884,1718277113822,-617.34,0.00026691,3]
[329357885,1718277113844,-983.88,0.00026691,3]
[329357886,1718277113863,-1386.52,0.00026691,3]
[329357887,1718277113897,-1442.64,0.00026691,3]
[329357888,1718277113923,-1828.6,0.00026691,3]
[329357889,1718277113943,-1892.77,0.00026691,3]
[329357890,1718277113962,-1002.34,0.00026691,3]
[329357891,1718277113975,-2616.45,0.00026691,3]
[329357892,1718277113989,-1657.94,0.00026691,3]
[329357893,1718277114000,-1131.64,0.00026691,3]
[329357894,1718277114039,-1100.13,0.00026691,3]
[329357895,1718277114053,-3181.1,0.00026691,3]
[329357896,1718277114066,-790.44,0.00026691,3]
[329357897,1718277114083,-150.0,0.00026699,2]
[329357898,1718277114099,-9969.72,0.000267,2]
[329357899,1718277114113,-2274.27,0.000267,2]
[329357900,1718277114126,-157.96553431,0.00026714,2]
[329357901,1718277114144,-154.20874861,0.0002673,2]
[329357902,1718277114163,-150.0,0.00026732,2]
[329357903,1718277114185,-153.68250367,0.00026736,2]
[329357904,1718277114202,-160.6132499,0.00026737,2]
[329357905,1718277114246,-800.0,0.0002674,2]
[329357906,1718277114264,-800.0,0.0002674,2]
[329357907,1718277114280,-800.0,0.0002674,2]
[329357908,1718277114293,-150.0,0.0002674,2]
[329357909,1718277114305,-150.0,0.00026748,2]
[329357910,1718277114318,-152.1899555,0.00026755,2]
[329357911,1718277114346,-695.20998317,0.00026757,2]
[329357912,1718277114396,-150.0,0.00026759,2]
[329357913,1718277114409,-153.68250367,0.0002676,2]
[329357914,1718277114424,-150.0,0.0002676,2]
[329357915,1718277114441,-150.0,0.00026766,2]
[329357916,1718277114454,-150.0,0.00026779,2]
[329357917,1718277114467,-150.0,0.00026791,2]
[329357918,1718277114480,-160.0,0.000268,2]
[329357919,1718277114496,-200.0,0.000268,2]
[329357920,1718277114509,-150.0,0.000268,5]
[329357921,1718277114527,-591.9030196,0.00026803,2]
[329357922,1718277114539,-695.0484503,0.00026803,2]
[329357923,1718277114561,-4853.71,0.00026805,2]
[329357924,1718277114574,-4952.97,0.00026806,2]
[329357925,1718277114586,-4895.22,0.00026809,2]
[329357926,1718277114608,-1183.25,0.00026848,3]
[329357927,1718277114641,-500.0,0.00026848,3]
[329357928,1718277114655,-704.44,0.00026848,3]
[329357929,1718277114696,-500.0,0.00026848,3]
[329357930,1718277114717,-5852.16,0.00026848,3]
[329357931,1718277114737,-2891.73,0.00026848,3]
[329357932,1718277114748,-1318.26,0.00026848,3]
[329357933,1718277114759,-2337.62,0.00026848,3]
[329357934,1718277114776,-1185.47,0.00026848,3]
[329357935,1718277114789,-1475.74,0.00026848,3]
[329357936,1718277114801,-572.37,0.00026848,3]
[329357937,1718277114930,-500.0,0.00026849,2]
[329357938,1718277114954,-500.0,0.00026849,3]
[329357939,1718277114970,-507.40387745,0.00026849,3]
[329357940,1718277114982,-500.0,0.00026849,3]
[329357941,1718277114998,-500.0,0.00026849,3]
[329357942,1718277115022,-643.37626271,0.00026849,3]
[329357943,1718277115034,-215.0,0.0002685,2]
[329357944,1718277115051,-152.96556495,0.00026867,2]
[329357945,1718277115067,-150.0,0.00026879,7]
[329357946,1718277115079,-423911.93318464,0.0002688,2]
[329357947,1718277115093,-151.0,0.0002688,7]
[329357948,1718277115108,-1608.33890032,0.00026899,2]
[329357949,1718277115122,-200.0,0.000269,9]
[329357950,1718277115134,-215.97868086,0.00026903,2]
[329357951,1718277115146,-156.17044263,0.0002695,2]
[329357952,1718277115162,-157.89937374,0.00026958,2]
[329357953,1718277115174,-628.5,0.00026962,3]
[329357954,1718277115187,-877.35,0.00026962,3]
[329357955,1718277115201,-1070.7,0.00026962,3]
[329357956,1718277115222,-500.0,0.00026962,3]
[329357957,1718277115255,-871.84,0.00026962,3]
[329357958,1718277115288,-1196.79,0.00026962,3]
[329357959,1718277115300,-2448.85,0.00026962,3]
[329357960,1718277115314,-748.9,0.00026962,3]
[329357961,1718277115325,-1584.05,0.00026962,3]
[329357962,1718277115358,-875.77,0.00026962,3]
[329357963,1718277115393,-896.33,0.00026962,3]
[329357964,1718277115407,-1393.21,0.00026962,3]
[329357965,1718277115420,-712.29,0.00026962,3]
[329357966,1718277115442,-3021.74,0.00026962,3]
[329357967,1718277115469,-2955.13,0.00026962,3]
[329357968,1718277115492,-1592.21,0.00026962,3]
[329357969,1718277115520,-1489.31,0.00026962,3]
[329357970,1718277115548,-1351.15,0.00026962,3]
[329357971,1718277115579,-1097.22,0.00026962,3]
[329357972,1718277115600,-1841.9,0.00026962,3]
[329357973,1718277115618,-500.0,0.00026962,3]
[329357974,1718277115641,-500.0,0.00026962,3]
[329357975,1718277115656,-1562.15,0.00026962,3]
[329357976,1718277115679,-1074.6,0.00026963,3]
[329357977,1718277115700,-31357.31,0.00026963,3]
[329357978,1718277115716,-1670.36,0.00026963,3]
[329357979,1718277115750,-1382.88,0.00026963,3]
[329357980,1718277115778,-739.94,0.00026963,3]
[329357981,1718277115790,-892.4,0.00026963,3]
[329357982,1718277115801,-1184.9,0.00026963,3]
[329357983,1718277115815,-585.64,0.00026963,3]
[329357984,1718277115828,-929.82,0.00026963,3]
[329357985,1718277115854,-623.27,0.00026963,3]
[329357986,1718277115866,-1120.48,0.00026963,3]
[329357987,1718277115881,-500.0,0.00026964,3]
[329357988,1718277115895,-341.97,0.00026964,3]
[329357989,1718277115906,-653.07,0.00026964,3]
[329357990,1718277115920,-500.0,0.00026964,3]
[329357991,1718277115936,-1199.36,0.00026964,3]
[329357992,1718277115966,-500.0,0.00026964,3]
[329357993,1718277115986,-760.53,0.00026964,3]
[329357994,1718277116024,-500.0,0.00026964,3]
[329357995,1718277116043,-500.0,0.00026964,3]
[329357996,1718277116065,-500.0,0.00026964,3]
[329357997,1718277116079,-500.0,0.00026964,3]
[329357998,1718277116096,-254.42502481,0.00026964,3]
[329357999,1718277116116,-1016.21,0.00026964,3]
[329358000,1718277116132,-500.0,0.00026964,3]
[329358001,1718277116153,-803.45,0.00026964,3]
[329358002,1718277116177,-500.0,0.00026964,3]
[329358003,1718277116190,-500.0,0.00026964,3]
[329358004,1718277116230,-500.0,0.00026964,3]
[329358005,1718277116256,-913.83,0.00026964,3]
[329358006,1718277116279,-878.65,0.00026964,3]
[329358007,1718277116290,-2296.66,0.00026964,3]
[329358008,1718277116307,-500.0,0.00026964,3]
[329358009,1718277116319,-762.45,0.00026964,3]
[329358010,1718277116337,-500.0,0.00026964,3]
[329358011,1718277116361,-555.03,0.00026964,3]
[329358012,1718277116377,-1924.86,0.00026964,3]
[329358013,1718277116390,-1949.34,0.00026964,3]
[329358014,1718277116409,-3080.34,0.00026964,3]
[329358015,1718277116421,-500.0,0.00026964,3]
[329358016,1718277116448,-500.0,0.00026964,3]
[329358017,1718277116493,-481.51541421,0.00026964,3]
[329358018,1718277116504,-500.0,0.00026964,3]
[329358019,1718277116524,-907.62,0.00026964,3]
[329358020,1718277116540,-525.39,0.00026964,3]
[329358021,1718277116552,-500.0,0.00026964,3]
[329358022,1718277116575,-985.91,0.00026964,3]
[329358023,1718277116591,-500.0,0.00026964,3]
[329358024,1718277116608,-2729.07,0.00026964,3]
[329358025,1718277116619,-500.0,0.00026964,3]
[329358026,1718277116630,-3064.01,0.00026964,3]
[329358027,1718277116642,-640.1,0.00026964,3]
[329358028,1718277116658,-500.0,0.00026964,3]
[329358029,1718277116681,-500.0,0.00026964,3]
[329358030,1718277116693,-2850.36,0.00026964,3]
[329358031,1718277116707,-561.15,0.00026965,3]
[329358032,1718277116726,-500.0,0.00026965,3]
[329358033,1718277116740,-500.0,0.00026965,3]
[329358034,1718277116755,-500.0,0.00026965,3]
[329358035,1718277116773,-500.0,0.00026965,3]
[329358036,1718277116786,-189.92197162,0.00026965,3]
[329358037,1718277116800,-543.44,0.00026965,3]
[329358038,1718277116816,-500.0,0.00026965,3]
[329358039,1718277116832,-500.0,0.00026965,3]
[329358040,1718277116854,-545.19,0.00026965,3]
[329358041,1718277116866,-500.0,0.00026965,3]
[329358042,1718277116879,-866.32,0.00026965,3]
[329358043,1718277116893,-554.24,0.00026965,3]
[329358044,1718277116907,-794.39,0.00026965,3]
[329358045,1718277116920,-500.0,0.00026965,3]
[329358046,1718277116941,-500.0,0.00026965,3]
[329358047,1718277116963,-500.0,0.00026965,3]
[329358048,1718277116977,-200.0,0.00026965,3]
[329358049,1718277116996,-555.7,0.00026965,3]
[329358050,1718277117020,-1106.58,0.00026965,3]
[329358051,1718277117033,-500.0,0.00026965,3]
[329358052,1718277117045,-283.47,0.00026965,3]
[329358053,1718277117063,-500.0,0.00026965,3]
[329358054,1718277117080,-500.0,0.00026965,3]
[329358055,1718277117099,-1207.15,0.00026965,3]
[329358056,1718277117118,-500.0,0.00026965,3]
[329358057,1718277117143,-940.28,0.00026965,3]
[329358058,1718277117167,-614.10681527,0.00026965,3]
[329358059,1718277117182,-633.48,0.00026965,3]
[329358060,1718277117200,-1695.46,0.00026965,3]
[329358061,1718277117250,-500.0,0.00026965,3]
[329358062,1718277117261,-1351.29,0.00026965,3]
[329358063,1718277117278,-500.0,0.00026965,3]
[329358064,1718277117291,-977.95,0.00026965,3]
[329358065,1718277117303,-557.92,0.00026965,3]
[329358066,1718277117316,-500.0,0.00026965,3]
[329358067,1718277117339,-869.98,0.00026965,3]
[329358068,1718277117352,-2538.97,0.00026965,3]
[329358069,1718277117364,-774.79,0.00026965,3]
[329358070,1718277117376,-394.10730771,0.00026965,3]
[329358071,1718277117394,-500.0,0.00026965,3]
[329358072,1718277117405,-869.72,0.00026965,3]
[329358073,1718277117416,-2643.48,0.00026965,3]
[329358074,1718277117428,-1050.99,0.00026965,3]
[329358075,1718277117450,-500.0,0.00026965,3]
[329358076,1718277117473,-6022.3,0.00026965,3]
[329358077,1718277117511,-2325.51,0.00026965,3]
[329358078,1718277117523,-594.46,0.00026965,3]
[329358079,1718277117541,-1340.93,0.00026965,3]
[329358080,1718277117558,-525.87,0.00026965,3]
[329358081,1718277117574,-2801.14,0.00026965,3]
[329358082,1718277117587,-556.9,0.00026965,3]
[329358083,1718277117608,-1037.02,0.00026965,3]
[329358084,1718277117623,-788.09,0.00026965,3]
[329358085,1718277117661,-500.0,0.00026965,3]
[329358086,1718277117682,-1590.22,0.00026965,3]
[329358087,1718277117696,-1299.11,0.00026965,3]
[329358088,1718277117711,-1761.78,0.00026965,3]
[329358089,1718277117748,-1262.69,0.00026965,3]
[329358090,1718277117769,-8305.14,0.00026965,3]
[329358091,1718277117790,-4418.73,0.00026965,3]
[329358092,1718277117823,-500.0,0.00026965,3]
[329358093,1718277117838,-1444.06,0.00026965,3]
[329358094,1718277117864,-577.13,0.00026965,3]
[329358095,1718277117880,-500.0,0.00026965,3]
[329358096,1718277117917,-725.83,0.00026965,3]
[329358097,1718277117937,-1042.68,0.00026965,3]
[329358098,1718277117950,-500.0,0.00026965,3]
[329358099,1718277117965,-3100.67,0.00026965,3]
[329358100,1718277117982,-500.0,0.00026965,3]
[329358101,1718277117999,-518.8,0.00026965,3]
[329358102,1718277118016,-1727.08,0.00026965,3]
[329358103,1718277118030,-500.0,0.00026965,3]
[329358104,1718277118047,-500.0,0.00026965,3]
[329358105,1718277118058,-1122.65,0.00026965,3]
[329358106,1718277118101,-505.98,0.00026965,3]
[329358107,1718277118115,-1309.02,0.00026965,3]
[329358108,1718277118130,-662.75,0.00026965,3]
[329358109,1718277118145,-617.34,0.00026965,3]
[329358110,1718277118160,-983.88,0.00026965,3]
[329358111,1718277118182,-1386.52,0.00026965,3]
[329358112,1718277118198,-1442.64,0.00026965,3]
[329358113,1718277118234,-1828.6,0.00026965,3]
[329358114,1718277118253,-1892.77,0.00026965,3]
[329358115,1718277118266,-1002.34,0.00026965,3]
[329358116,1718277118281,-2616.45,0.00026965,3]
[329358117,1718277118296,-1657.94,0.00026965,3]
[329358118,1718277118307,-1131.64,0.00026965,3]
[329358119,1718277118321,-1100.13,0.00026965,3]
[329358120,1718277118336,-3181.1,0.00026965,3]
[329358121,1718277118349,-790.44,0.00026965,3]
[329358122,1718277118363,-5000.0,0.00027,7]
[329358123,1718277118379,-3000.0,0.00027,2]
[329358124,1718277118397,-21595.0,0.00027,5]
[329358125,1718277118411,-14468.21193202,0.00027,2]
[329358126,1718277118428,-169.27885675,0.00027,2]
[329358127,1718277118458,-30000.0,0.00027,3]
[329358128,1718277118480,-1400.0,0.00027,2]
[329358129,1718277118509,-2068.363595,0.00027,2]
[329358130,1718277118525,-153.68250367,0.00027003,2]
[329358131,1718277118537,-151.0,0.00027004,5]
[329358132,1718277118559,-152.96556495,0.00027023,2]
[329358133,1718277118576,-526.20582968,0.00027032,2]
[329358134,1718277118609,-155.36469262,0.00027052,2]
[329358135,1718277118643,-218.51742701,0.00027081,2]
[329358136,1718277118663,-218.51742701,0.00027088,2]
[329358137,1718277118699,-1439.37668532,0.00027116,2]
[329358138,1718277118733,-157.96553431,0.00027117,2]
[329358139,1718277118752,-500.0,0.00027122,2]
[329358140,1718277118772,-700.0,0.00027122,2]
[329358141,1718277118792,-600.0,0.00027122,2]
[329358142,1718277118808,-4000.0,0.00027122,2]
[329358143,1718277118823,-3400.0,0.00027122,2]
[329358144,1718277118857,-1183.25,0.00027122,3]
[329358145,1718277118874,-626.66,0.00027122,3]
[329358146,1718277118897,-704.44,0.00027122,3]
[329358147,1718277118945,-500.0,0.00027122,3]
[329358148,1718277118960,-5852.16,0.00027122,3]
[329358149,1718277118980,-2891.73,0.00027122,3]
[329358150,1718277119000,-1318.26,0.00027122,3]
[329358151,1718277119031,-2337.62,0.00027122,3]
[329358152,1718277119048,-1185.47,0.00027122,3]
[329358153,1718277119070,-1475.74,0.00027122,3]
[329358154,1718277119086,-572.37,0.00027122,3]
[329358155,1718277119108,-500.0,0.00027123,2]
[329358156,1718277119126,-500.0,0.00027123,3]
[329358157,1718277119147,-500.0,0.00027123,3]
[329358158,1718277119176,-500.0,0.00027123,3]
[329358159,1718277119207,-157.96553431,0.00027146,2]
[329358160,1718277119249,-152.1899555,0.00027147,2]
[329358161,1718277119262,-152.38627793,0.0002715,2]
[329358162,1718277119276,-432.95585059,0.0002715,2]
[329358163,1718277119291,-526.20582968,0.00027185,2]
[329358164,1718277119307,-164.14572184,0.00027187,2]
[329358165,1718277119329,-2036.15246423,0.000272,2]
[329358166,1718277119345,-526.20582968,0.00027219,2]
[329358167,1718277119373,-628.5,0.00027236,3]
[329358168,1718277119385,-877.35,0.00027236,3]
[329358169,1718277119397,-1070.7,0.00027236,3]
[329358170,1718277119410,-500.0,0.00027236,3]
[329358171,1718277119423,-871.84,0.00027236,3]
[329358172,1718277119435,-1196.79,0.00027236,3]
[329358173,1718277119447,-2448.85,0.00027236,3]
[329358174,1718277119459,-748.9,0.00027236,3]
[329358175,1718277119494,-1584.05,0.00027236,3]
[329358176,1718277119507,-875.77,0.00027236,3]
[329358177,1718277119520,-896.33,0.00027236,3]
[329358178,1718277119544,-1393.21,0.00027236,3]
[329358179,1718277119557,-712.29,0.00027236,3]
[329358180,1718277119572,-3021.74,0.00027236,3]
[329358181,1718277119587,-2955.13,0.00027236,3]
[329358182,1718277119611,-1592.21,0.00027236,3]
[329358183,1718277119624,-1489.31,0.00027236,3]
[329358184,1718277119647,-1351.15,0.00027236,3]
[329358185,1718277119673,-1097.22,0.00027236,3]
[329358186,1718277119686,-1841.9,0.00027236,3]
[329358187,1718277119699,-500.0,0.00027236,3]
[329358188,1718277119711,-500.0,0.00027236,3]
[329358189,1718277119722,-1562.15,0.00027236,3]
[329358190,1718277119735,-1074.6,0.00027237,3]
[329358191,1718277119752,-31357.31,0.00027237,3]
[329358192,1718277119765,-1670.36,0.00027237,3]
[329358193,1718277119777,-1382.88,0.00027237,3]
[329358194,1718277119790,-739.94,0.00027237,3]
[329358195,1718277119802,-892.4,0.00027237,3]
[329358196,1718277119814,-1184.9,0.00027237,3]
[329358197,1718277119832,-585.64,0.00027237,3]
[329358198,1718277119844,-929.82,0.00027237,3]
[329358199,1718277119983,-623.27,0.00027237,3]
[329358200,1718277119998,-1120.48,0.00027237,3]
[329358201,1718277120019,-500.0,0.00027238,3]
[329358202,1718277120037,-653.07,0.00027238,3]
[329358203,1718277120069,-500.0,0.00027238,3]
[329358204,1718277120095,-1199.36,0.00027238,3]
[329358205,1718277120116,-506.46836794,0.00027238,3]
[329358206,1718277120154,-760.53,0.00027238,3]
[329358207,1718277120167,-500.0,0.00027238,3]
[329358208,1718277120179,-331.27499505,0.00027238,3]
[329358209,1718277120199,-500.0,0.00027238,3]
[329358210,1718277120212,-500.0,0.00027238,3]
[329358211,1718277120236,-1016.21,0.00027238,3]
[329358212,1718277120251,-500.0,0.00027238,3]
[329358213,1718277120261,-803.45,0.00027238,3]
[329358214,1718277120276,-500.0,0.00027238,3]
[329358215,1718277120288,-500.0,0.00027238,3]
[329358216,1718277120302,-500.0,0.00027238,3]
[329358217,1718277120313,-913.83,0.00027238,3]
[329358218,1718277120325,-878.65,0.00027238,3]
[329358219,1718277120335,-2296.66,0.00027238,3]
[329358220,1718277120348,-500.0,0.00027238,3]
[329358221,1718277120360,-762.45,0.00027238,3]
[329358222,1718277120372,-500.0,0.00027238,3]
[329358223,1718277120384,-555.03,0.00027238,3]
[329358224,1718277120397,-1924.86,0.00027238,3]
[329358225,1718277120409,-1949.34,0.00027238,3]
[329358226,1718277120424,-3080.34,0.00027238,3]
[329358227,1718277120471,-500.0,0.00027238,3]
[329358228,1718277120483,-500.0,0.00027238,3]
[329358229,1718277120509,-500.0,0.00027238,3]
[329358230,1718277120523,-907.62,0.00027238,3]
[329358231,1718277120539,-525.39,0.00027238,3]
[329358232,1718277120568,-500.0,0.00027238,3]
[329358233,1718277120597,-985.91,0.00027238,3]
[329358234,1718277120610,-500.0,0.00027238,3]
[329358235,1718277120632,-2729.07,0.00027238,3]
[329358236,1718277120644,-500.0,0.00027238,3]
[329358237,1718277120680,-3064.01,0.00027238,3]
[329358238,1718277120693,-640.1,0.00027238,3]
[329358239,1718277120718,-500.0,0.00027238,3]
[329358240,1718277120730,-551.62346322,0.00027238,3]
[329358241,1718277120760,-2850.36,0.00027238,3]
[329358242,1718277120787,-4051.86371445,0.00027239,5]
[329358243,1718277120810,-500.0,0.00027239,3]
[329358244,1718277120823,-500.0,0.00027239,3]
[329358245,1718277120836,-500.0,0.00027239,3]
[329358246,1718277120855,-500.0,0.00027239,3]
[329358247,1718277120867,-543.44,0.00027239,3]
[329358248,1718277120883,-290.38,0.00027239,3]
[329358249,1718277120915,-500.0,0.00027239,3]
[329358250,1718277120934,-545.19,0.00027239,3]
[329358251,1718277120966,-500.0,0.00027239,3]
[329358252,1718277120980,-866.32,0.00027239,3]
[329358253,1718277121012,-554.24,0.00027239,3]
[329358254,1718277121039,-794.39,0.00027239,3]
[329358255,1718277121054,-500.0,0.00027239,3]
[329358256,1718277121070,-500.0,0.00027239,3]
[329358257,1718277121091,-500.0,0.00027239,3]
[329358258,1718277121113,-200.0,0.00027239,3]
[329358259,1718277121140,-555.7,0.00027239,3]
[329358260,1718277121172,-1106.58,0.00027239,3]
[329358261,1718277121186,-500.0,0.00027239,3]
[329358262,1718277121197,-283.47,0.00027239,3]
[329358263,1718277121210,-500.0,0.00027239,3]
[329358264,1718277121235,-500.0,0.00027239,3]
[329358265,1718277121250,-1207.15,0.00027239,3]
[329358266,1718277121262,-500.0,0.00027239,3]
[329358267,1718277121274,-940.28,0.00027239,3]
[329358268,1718277121300,-633.48,0.00027239,3]
[329358269,1718277121320,-1695.46,0.00027239,3]
[329358270,1718277121334,-500.0,0.00027239,3]
[329358271,1718277121370,-1351.29,0.00027239,3]
[329358272,1718277121410,-500.0,0.00027239,3]
[329358273,1718277121436,-977.95,0.00027239,3]
[329358274,1718277121454,-557.92,0.00027239,3]
[329358275,1718277121501,-500.0,0.00027239,3]
[329358276,1718277121522,-869.98,0.00027239,3]
[329358278,1718277121555,-2538.97,0.00027239,3]
[329358279,1718277121581,-774.79,0.00027239,3]
[329358281,1718277121597,-500.0,0.00027239,3]
[329358282,1718277121611,-869.72,0.00027239,3]
[329358283,1718277121625,-2643.48,0.00027239,3]
[329358285,1718277121641,-1050.99,0.00027239,3]
[329358286,1718277121656,-500.0,0.00027239,3]
[329358287,1718277121692,-6022.3,0.00027239,3]
[329358288,1718277121708,-2325.51,0.00027239,3]
[329358289,1718277121729,-594.46,0.00027239,3]
[329358290,1718277121742,-1340.93,0.00027239,3]
[329358291,1718277121754,-525.87,0.00027239,3]
[329358292,1718277121767,-2801.14,0.00027239,3]
[329358293,1718277121786,-556.9,0.00027239,3]
[329358294,1718277121802,-1037.02,0.00027239,3]
[329358295,1718277121816,-788.09,0.00027239,3]
[329358296,1718277121838,-500.0,0.00027239,3]
[329358297,1718277121855,-1590.22,0.00027239,3]
[329358298,1718277121868,-1299.11,0.00027239,3]
[329358299,1718277121887,-1761.78,0.00027239,3]
[329358301,1718277121911,-1262.69,0.00027239,3]
[329358302,1718277121926,-8305.14,0.00027239,3]
[329358303,1718277121945,-4418.73,0.00027239,3]
[329358304,1718277121958,-500.0,0.00027239,3]
[329358305,1718277121972,-1444.06,0.00027239,3]
[329358306,1718277121989,-577.13,0.00027239,3]
[329358307,1718277122003,-500.0,0.00027239,3]
[329358308,1718277122023,-725.83,0.00027239,3]
[329358309,1718277122041,-1042.68,0.00027239,3]
[329358310,1718277122067,-500.0,0.00027239,3]
[329358311,1718277122080,-3100.67,0.00027239,3]
[329358312,1718277122096,-500.0,0.00027239,3]
[329358313,1718277122112,-518.8,0.00027239,3]
[329358314,1718277122125,-1727.08,0.00027239,3]
[329358315,1718277122148,-500.0,0.00027239,3]
[329358316,1718277122163,-500.0,0.00027239,3]
[329358317,1718277122184,-1122.65,0.00027239,3]
[329358318,1718277122200,-505.98,0.00027239,3]
[329358319,1718277122222,-1309.02,0.00027239,3]
[329358320,1718277122253,-662.75,0.00027239,3]
[329358321,1718277122277,-617.34,0.00027239,3]
[329358322,1718277122289,-983.88,0.00027239,3]
[329358323,1718277122313,-1386.52,0.00027239,3]
[329358324,1718277122340,-1442.64,0.00027239,3]
[329358325,1718277122358,-1828.6,0.00027239,3]
[329358326,1718277122372,-1892.77,0.00027239,3]
[329358327,1718277122394,-1002.34,0.00027239,3]
[329358328,1718277122410,-2616.45,0.00027239,3]
[329358329,1718277122424,-1657.94,0.00027239,3]
[329358330,1718277122438,-1131.64,0.00027239,3]
[329358331,1718277122452,-1100.13,0.00027239,3]
[329358332,1718277122468,-3181.1,0.00027239,3]
[329358333,1718277122499,-790.44,0.00027239,3]
[329358334,1718277122519,-218.51742701,0.00027253,2]